Cogmind - Beta 11.1 @@@ ROGUE MODE // 2022.06.16 @ 21:41:06 Player: ChromeKnight Result: Self-destructed Performance ------------- Evolutions (3) 1500 Regions Visited (7) 1400 Robots Destroyed (80) 400 Value Destroyed (2478) 2478 Prototype IDs (2) 40 Alien Tech Used (0) 0 Bonus (1374) 1374 TOTAL SCORE: 7192 Bonus ------- High Alert Combat Kills 53 Follower Combat Kills 621 Entered Garrisons 200 Used RIF Installer 500 Cogmind --------- Core Integrity 700/700 Matter 300/300 Energy 265/265 System Corruption 0% Temperature Cool (0) Movement Treading (240) Ox1 Location -7/Factory Parts ------- > --- POWER (1) -------- Improved Ion Engine > --- PROPULSION (2) --- Light Treads Light Treads > --- UTILITY (8) ------ Improved Heat Sink Large Storage Unit Hardened Medium Armor Plating Hacking Suite > --- WEAPON (2) ------- Shock Rifle Improved Heavy Laser > --- INVENTORY (15) --- Light Treads Cesium-ion Thruster Reactive Plating Reactive Plating Hacking Suite Relay Coupler [NC] (22) Relay Coupler [NC] (32) Relay Coupler [Grunt] (22) Relay Coupler [Grunt] (32) Relay Coupler [Brawler] (21) Relay Coupler [Sentry] (17) Relay Coupler [Sentry] (17) Relay Coupler [Hunter] (13) Datajack Datajack Peak State ------------ > --- POWER ------------ Improved Ion Engine > --- PROPULSION ------- Light Treads Light Treads > --- UTILITY ---------- Improved Heat Sink Large Storage Unit Hardened Medium Armor Plating Hacking Suite > --- WEAPON ----------- Shock Rifle Improved Heavy Laser > --- INVENTORY -------- Light Treads Cesium-ion Thruster Reactive Plating Reactive Plating Hacking Suite Relay Coupler [Grunt] Relay Coupler [Brawler] Relay Coupler [Sentry] Relay Coupler [Sentry] Relay Coupler [Hunter] Relay Coupler [Hunter] Particle Gun Datajack Datajack [Rating: 27] Favorites ----------- Power Deuterium Engine Engine Deuterium Engine Propulsion Light Treads Treads Light Treads Wheel Wheel Utility Light Armor Plating Device Cooling System Storage Large Storage Unit Hackware Hacking Suite Protection Light Armor Plating Weapon Improved Heavy Laser Energy Gun Improved Heavy Laser Ballistic Gun Light Assault Rifle Special Melee Weapon Datajack Build | -11 -10 -10 -9 -9 -9 -9 -7 ------- Run | Scr Mat Min Mat Sto Gar Rec Fac Slots Evolved 6 | . . . 2 . . . 4 Power . | . . . . . . . . Propulsion . | . . . . . . . . Utility 6 | . . . 2 . . . 4 Weapon . | . . . . . . . . Parts Attached 80 | 6 5 12 31 17 9 . . Power 9 | 1 1 4 1 2 . . . Engine 9 | 1 1 4 1 2 . . . Core . | . . . . . . . . Reactor . | . . . . . . . . Propulsion 18 | 2 . 2 7 5 2 . . Treads 16 | 2 . 1 6 5 2 . . Leg . | . . . . . . . . Wheel 2 | . . 1 1 . . . . Hover . | . . . . . . . . Flight . | . . . . . . . . Utility 26 | 1 4 1 12 5 3 . . Device 2 | . . . 1 . 1 . . Storage 5 | 1 1 . 3 . . . . Processor . | . . . . . . . . Hackware 1 | . . . . 1 . . . Protection 18 | . 3 1 8 4 2 . . Artifact . | . . . . . . . . Weapon 27 | 2 . 5 11 5 4 . . Energy Gun 17 | . . . 10 5 2 . . Energy Cannon . | . . . . . . . . Ballistic Gun 7 | 2 . 5 . . . . . Ballistic Cannon . | . . . . . . . . Launcher . | . . . . . . . . Special Weapon . | . . . . . . . . Impact Weapon . | . . . . . . . . Slashing Weapon . | . . . . . . . . Piercing Weapon . | . . . . . . . . Special Melee Weapon 3 | . . . 1 . 2 . . Unidentified Prototypes 2 | . . . 1 1 . . . Parts Lost 10 | . . 3 2 3 2 . . Power 1 | . . 1 . . . . . Propulsion 2 | . . 2 . . . . . Utility 5 | . . . 2 2 1 . . Weapon 2 | . . . . 1 1 . . Highest Loss Streak 2 | . . 2 1 1 1 . . To Critical Strikes . | . . . . . . . . Average Slot Usage (%) 97 | . 96 99 97 99 99 100 69 Engine 11 | . 14 13 10 10 11 11 7 Treads 18 | . 28 20 11 18 22 22 15 Wheel 3 | . . 7 10 3 . . . Device 8 | . . . 10 11 10 11 7 Storage 11 | . 14 14 11 11 11 11 7 Hackware 3 | . . . . 1 11 11 7 Protection 15 | . 10 14 20 19 10 11 7 Energy Gun 17 | . . . 21 21 19 22 15 Ballistic Gun 4 | . 28 28 . . . . . Naked Turns . | . . . . . . . . Heaviest Build 47 | 13 21 24 47 47 47 44 44 Greatest Support 40 | 40 40 40 40 40 40 40 40 Greatest Overweight (x) 4 | . . 2 4 4 1 1 1 Average Overweight (x) 1 | . . 1 3 1 1 1 1 Largest Inventory Capacity 15 | 8 10 10 15 15 15 15 15 Average Capacity 13 | 6 9 10 11 15 15 15 15 Most Carried 15 | . 10 10 15 15 15 15 15 Average Carried 12 | . 7 9 11 14 13 15 15 Final Capacity 15 | 8 10 10 15 15 15 15 15 Final Carried 15 | . 10 10 15 13 15 15 15 Class Distribution -------------------- 57% | Mutant 31% | Commander-Mutant 8% | Scavenger-Mutant Dominant Class ---------------- Mutant | -10/Materials Mutant | -10/Mines Mutant | -9/Materials Mutant | -9/Storage Commander-Mutant | -9/Garrison Commander-Mutant | -9/Recycling Bothacker-Mutant | -7/Factory Resources | -11 -10 -10 -9 -9 -9 -9 -7 ----------- Run | Scr Mat Min Mat Sto Gar Rec Fac Matter Collected 1177 | 211 186 215 323 152 90 . . Remotely . | . . . . . . . . Salvage Created 2866 | 30 204 224 1227 994 187 . . Parts 179 | 2 5 10 81 71 10 . . Haulers Intercepted 5 | . 1 . 3 1 . . . Recyclers Shooed 1 | . . . . 1 . . . Parts Field Recycled . | . . . . . . . . Retrieved Matter . | . . . . . . . . Parts Self-Destructed . | . . . . . . . . Prevented . | . . . . . . . . Kills | -11 -10 -10 -9 -9 -9 -9 -7 ------- Run | Scr Mat Min Mat Sto Gar Rec Fac Combat Hostiles Destroyed 57 | . 3 7 25 18 4 . . Guns 50 | . 3 7 19 18 3 . . AOE 7 | . . . 6 . 1 . . Classes Destroyed 13 | 1 2 3 4 1 2 . . Worker 6 | . . 1 3 2 . . . Builder 1 | . . . . 1 . . . Tunneler 1 | 1 . . . . . . . Hauler 5 | . 1 . 3 1 . . . Recycler 2 | . . 1 . 1 . . . Operator 2 | . . . 1 1 . . . Watcher 6 | . . . 4 2 . . . Swarmer 22 | . . 6 9 7 . . . Grunt 14 | . 3 1 7 2 1 . . Duelist 1 | . . . 1 . . . . Sentry 17 | . . . 8 9 . . . Specialist 2 | . . . . . 2 . . Hunter 1 | . . . . . 1 . . Best Kill Streak 12 | 1 2 3 12 4 1 . . Combat Bots Only 11 | . 2 3 11 4 1 . . Max Kills in Single Turn 3 | 1 1 2 3 2 1 . . Gunslinging 1 | . . 1 1 1 . . . Exploded 2 | . . . 2 . 1 . . Melee . | . . . . . . . . Uniques/NPCs Destroyed . | . . . . . . . . Combat | -11 -10 -10 -9 -9 -9 -9 -7 -------- Run | Scr Mat Min Mat Sto Gar Rec Fac Damage Taken 2854 | . 512 561 798 697 255 31 . Core 450 | . 99 125 76 90 60 . . Absorbed by Shields . | . . . . . . . . Regen/Repaired (Parts) 3 | . . . . 3 . . . Core Remaining (%) 51 | 100 . 10 . . . 43 . Volleys Fired 187 | 3 24 39 53 47 19 2 . Largest 2 | 2 2 2 2 2 2 2 . Hottest 115 | 40 40 40 90 115 115 115 . Shots Fired 371 | 6 48 78 106 94 35 4 . Gun 371 | 6 48 78 106 94 35 4 . Cannon . | . . . . . . . . Launcher . | . . . . . . . . Special . | . . . . . . . . Kinetic 132 | 6 48 78 . . . . . Thermal 65 | . . . . 47 16 2 . Explosive . | . . . . . . . . Electromagnetic 174 | . . . 106 47 19 2 . Robot Hit Streak 18 | 5 10 8 18 14 8 1 . Robot Miss Streak 7 | . 2 7 3 4 2 3 . Penetration Max . | . . . . . . . . Secondary Targets 9 | . . 1 3 4 1 . . Max Gunslinging Chain 1 | . . 1 1 1 1 . . Shots Hit Robots 268 | 5 33 33 90 68 38 1 . Core Hits 141 | 1 13 16 66 38 7 . . Critical Kills . | . . . . . . . . Critical Parts Destroyed . | . . . . . . . . Critical Strikes 5 | . . . . 3 2 . . Burn 5 | . . . . 3 2 . . Melee Attacks 16 | . . . . . 16 . . Impact . | . . . . . . . . Slashing . | . . . . . . . . Piercing . | . . . . . . . . Sneak Attacks 16 | . . . . . 16 . . Combat Hostiles . | . . . . . . . . Follow-up Attacks . | . . . . . . . . Damage Inflicted 4460 | 57 371 318 1691 1487 509 27 . Guns 3926 | 57 371 318 1286 1414 453 27 . Cannons . | . . . . . . . . Explosions 531 | . . . 405 70 56 . . Melee . | . . . . . . . . Ramming 3 | . . . . 3 . . . Kinetic 746 | 57 371 318 . . . . . Thermal 1613 | . . . 405 847 334 27 . Explosive . | . . . . . . . . Electromagnetic 2098 | . . . 1286 637 175 . . Impact . | . . . . . . . . Slashing . | . . . . . . . . Piercing . | . . . . . . . . Highest Corruption . | . . . . . . . . Average Corruption . | . . . . . . . . Corruption Purged . | . . . . . . . . Corruption Blocked . | . . . . . . . . Overload Shots . | . . . . . . . . Overflow Damage 14 | . . . . 14 . . . Projectiles . | . . . . . . . . Explosions 14 | . . . . 14 . . . Melee . | . . . . . . . . Knockbacks . | . . . . . . . . Impact . | . . . . . . . . Kinetic . | . . . . . . . . Secondary . | . . . . . . . . Self-Inflicted Damage 97 | . . . 57 40 . . . Shots 4 | . . . 3 1 . . . Rammed 1 | . . . . 1 . . . Targets Rammed 1 | . . . . 1 . . . Kicked . | . . . . . . . . Crushed . | . . . . . . . . Highest Temperature 198 | . 73 28 198 27 48 21 . Average Temperature 27 | . 32 8 68 12 16 14 . Received Heat Transfer 759 | . 240 51 213 183 66 6 . Siege Activations . | . . . . . . . . Robots Corrupted 1 | . . . 1 . . . . Combat Hostiles . | . . . . . . . . Parts Fried 11 | . . . 9 1 1 . . Impact Corruptions . | . . . . . . . . Robots Melted . | . . . . . . . . Combat Hostiles . | . . . . . . . . Parts Melted . | . . . . . . . . Heat Transferred 2711 | . . . 600 1469 605 37 . Parts Sabotaged . | . . . . . . . . Parts Stolen . | . . . . . . . . Parts Stripped . | . . . . . . . . Power Chain Reactions 8 | . . . 6 1 1 . . Missiles Intercepted . | . . . . . . . . Alert | -11 -10 -10 -9 -9 -9 -9 -7 ------- Run | Scr Mat Min Mat Sto Gar Rec Fac Peak Influence 1265 | 5 92 115 480 456 936 636 1265 Initial 1166 | . 3 35 39 202 167 421 1166 Average 318 | . 45 37 169 222 613 516 1244 Maximum Alert Level 4 | . . . 2 2 3 2 4 Low Security (%) 45 | 100 100 100 71 37 5 . . Level 1 27 | . . . 18 53 31 . . Level 2 9 | . . . 9 9 2 100 . Level 3 14 | . . . . . 60 . . Level 4 3 | . . . . . . . 100 Level 5 . | . . . . . . . . High Security . | . . . . . . . . Max Security . | . . . . . . . . Squads Dispatched 6 | . . 1 2 2 . . 1 Investigation 3 | . . 1 1 1 . . . Extermination 1 | . . . . . . . 1 Reinforcement 2 | . . . 1 1 . . . Assault . | . . . . . . . . Garrison . | . . . . . . . . Intercept . | . . . . . . . . Searches Triggered . | . . . . . . . . Construction Impeded . | . . . . . . . . Haulers Reinforced . | . . . . . . . . Active Scanning Responses . | . . . . . . . . Cargo Convoy Interrupts . | . . . . . . . . Stealth | -11 -10 -10 -9 -9 -9 -9 -7 --------- Run | Scr Mat Min Mat Sto Gar Rec Fac Distress Signals 5 | . . . 1 4 . . . Communications Jammed . | . . . . . . . . Distress Signals . | . . . . . . . . Times Spotted 124 | . 12 13 35 25 20 13 6 Peak Tracking Total 11 | . 5 3 11 4 4 4 5 Tactical Retreats 3 | . . 1 1 1 . . . Traps | -11 -10 -10 -9 -9 -9 -9 -7 ------- Run | Scr Mat Min Mat Sto Gar Rec Fac Traps Triggered 14 | . . . 3 7 4 . . Indirectly . | . . . . . . . . Trap Hack Attempts 8 | . . . 8 . . . . Triggered . | . . . . . . . . Disarmed . | . . . . . . . . Reprogrammed 2 | . . . 2 . . . . Reused 2 | . . . 2 . . . . Traps Extracted . | . . . . . . . . Installed . | . . . . . . . . Triggered 2 | . . . 2 . . . . Machines | -11 -10 -10 -9 -9 -9 -9 -7 ---------- Run | Scr Mat Min Mat Sto Gar Rec Fac Machines Disabled 5 | . . . . 2 3 . . Max in Single Turn 1 | . . . . 1 1 . . Garrison Relay 3 | . . . . . 3 . . Machines Sabotaged . | . . . . . . . . Garrisons Compromised . | . . . . . . . . Overloaded Fab Kills . | . . . . . . . . Hacking | -11 -10 -10 -9 -9 -9 -9 -7 --------- Run | Scr Mat Min Mat Sto Gar Rec Fac Machines Accessed 21 | . 4 1 4 11 . 1 . Terminals 18 | . 4 . 4 9 . 1 . Fabricators . | . . . . . . . . Repair Stations 1 | . . . . 1 . . . Recycling Units . | . . . . . . . . Scanalyzers . | . . . . . . . . Garrison Access 1 | . . . . 1 . . . Total Hacks 44 | . 5 1 10 25 . 3 . Successful 27 | . 5 1 8 12 . 1 . Failed 17 | . . . 2 13 . 2 . Catastrophic 5 | . . . . 4 . 1 . Database Lockouts . | . . . . . . . . Manual 35 | . 5 . 9 18 . 3 . Terminals 38 | . 5 . 10 20 . 3 . Fabricators . | . . . . . . . . Repair Stations 2 | . . . . 2 . . . Recycling Units . | . . . . . . . . Scanalyzers . | . . . . . . . . Garrison Access 3 | . . . . 3 . . . Terminal Hacks 6 | . . 1 2 3 . . . Record 1 | . . . 1 . . . . Open Door 4 | . . 1 . 3 . . . Branch Access Points 1 | . . . 1 . . . . Fabricator Hacks . | . . . . . . . . Repair Station Hacks 2 | . . . . 2 . . . Scan Component 1 | . . . . 1 . . . Repair 1 | . . . . 1 . . . Recycling Unit Hacks . | . . . . . . . . Scanalyzer . | . . . . . . . . Garrison Access Hacks 1 | . . . . 1 . . . Unlock Access 1 | . . . . 1 . . . Unauthorized Hacks 18 | . 5 . 6 6 . 1 . Terminals 18 | . 5 . 6 6 . 1 . Botnet 14 | . 4 . 4 5 . 1 . Operators 4 | . 1 . 2 1 . . . Fabricators . | . . . . . . . . Repair Stations . | . . . . . . . . Recycling Units . | . . . . . . . . Scanalyzers . | . . . . . . . . Garrison Access . | . . . . . . . . Data Cores Recovered . | . . . . . . . . Used . | . . . . . . . . Hacking Detections 12 | . . . 1 10 . 1 . Full Trace Events . | . . . . . . . . Feedback Events . | . . . . . . . . Feedback Blocked . | . . . . . . . . Robot Schematics Acquired . | . . . . . . . . Robots Built . | . . . . . . . . Authchips . | . . . . . . . . Time . | . . . . . . . . Total Robot Build Rating . | . . . . . . . . Part Schematics Acquired . | . . . . . . . . Parts Built . | . . . . . . . . Authchips . | . . . . . . . . Time . | . . . . . . . . Total Part Build Rating . | . . . . . . . . Parts Repaired 1 | . . . . 1 . . . Time 53 | . . . . 53 . . . Parts Recycled . | . . . . . . . . Recycled Matter . | . . . . . . . . Retrieved Matter . | . . . . . . . . Retrieved Components . | . . . . . . . . Parts Scanalyzed . | . . . . . . . . Part Schematics Acquired . | . . . . . . . . Parts Damaged . | . . . . . . . . Bothacking | -11 -10 -10 -9 -9 -9 -9 -7 ------------ Run | Scr Mat Min Mat Sto Gar Rec Fac Used RIF Installer 1 | . . . . . 1 . . Robots Hacked . | . . . . . . . . Non-combat . | . . . . . . . . Combat . | . . . . . . . . Robot Hacks Applied . | . . . . . . . . Relay Couplers Released 15 | . . . . . 15 . . Machine Destruction 15 | . . . . . 15 . . Fabnet Peak Effective % . | . . . . . . . . Robots Rewired 6 | . . . . . 6 . . Allies Hacked . | . . . . . . . . Hacks Repelled . | . . . . . . . . Allies | -11 -10 -10 -9 -9 -9 -9 -7 -------- Run | Scr Mat Min Mat Sto Gar Rec Fac Total Allies 16 | . . . . 10 6 . . Largest Group 16 | . . . . 10 16 14 10 Highest-Rated Group 226 | . . . . 88 226 178 117 Highest-Rated Ally 24 | . . . . 16 24 24 24 Total Orders 19 | . . . . . 16 2 1 STAY 8 | . . . . . 6 1 1 FOLLOW 11 | . . . . . 10 1 . Ally Attacks 230 | . . . . . 49 141 40 Total Damage 2671 | . . . . . 1133 1039 499 Kills 46 | . . . . . 17 22 7 Allies Corrupted . | . . . . . . . . Allies Melted . | . . . . . . . . Intel | -11 -10 -10 -9 -9 -9 -9 -7 ------- Run | Scr Mat Min Mat Sto Gar Rec Fac Robot Analysis Total . | . . . . . . . . Derelict Logs Recovered 3 | . . 3 . . . . . Drone Launches . | . . . . . . . . Drone Recoveries . | . . . . . . . . Exploration | -11 -10 -10 -9 -9 -9 -9 -7 ------------- Run | Scr Mat Min Mat Sto Gar Rec Fac Turns Passed 8889 | 69 748 795 1771 2691 2147 390 278 Spaces Moved 3507 | 36 410 505 794 732 779 140 111 Core 4 | 4 . . . . . . . Treads 2200 | 32 410 189 16 523 779 140 111 Legs . | . . . . . . . . Wheels 1303 | . . 316 778 209 . . . Hover . | . . . . . . . . Flight . | . . . . . . . . Fastest Speed 50 | 50 160 95 110 140 240 240 240 Average Speed 182 | 147 160 128 129 208 240 240 240 Slowest Speed 240 | 160 160 160 240 240 240 240 240 Overloaded Moves . | . . . . . . . . Propulsion Burnouts . | . . . . . . . . Robots Hopped . | . . . . . . . . Cave-ins Triggered . | . . . . . . . . Exploration Rate (%) 51 | 3 74 79 67 94 59 34 3 Regions Visited 7 Branch Regions 3 Pre-discovered Areas 2 | . . 2 . . . . . Known Exits Taken 2 | . . . 1 1 . . . Unknown Exits Taken 4 | 1 1 1 . . . 1 . Scrap Searched . | . . . . . . . . Spaces Dug . | . . . . . . . . Terrain Destroyed 47 | . . . 19 16 11 1 . Melee . | . . . . . . . . Projectile 13 | . . . . 12 . 1 . AOE 34 | . . . 19 4 11 . . Terrain Rammed . | . . . . . . . . Walls Destroyed . | . . . . . . . . Machines Disabled . | . . . . . . . . Actions | -11 -10 -10 -9 -9 -9 -9 -7 --------- Run | Scr Mat Min Mat Sto Gar Rec Fac Total 5648 | 44 460 587 1428 1800 1016 191 122 Wait 1731 | . 8 20 513 963 166 50 11 Move 3499 | 35 409 504 793 731 777 139 111 Hop . | . . . . . . . . Pick Up 39 | . 10 3 12 5 9 . . Fast Attach 34 | 6 1 3 10 12 2 . . Attach 9 | . . 1 5 2 1 . . Detach . | . . . . . . . . Swap 37 | . 4 8 16 3 6 . . Drop 51 | . 4 9 18 12 8 . . Fire 187 | 3 24 39 53 47 19 2 . Melee 16 | . . . . . 16 . . Ram . | . . . . . . . . Kick . | . . . . . . . . Crush 1 | . . . . 1 . . . Escape Stasis 36 | . . . . 24 12 . . Rewire . | . . . . . . . . Trap 8 | . . . 8 . . . . Miscellaneous . | . . . . . . . . Route ------- -11/Scrapyard -10/Materials (discovered 3 exits: *Mat / *Min x2) -10/Mines (discovered 2 exits: *Mat x2) -9/Materials (discovered 5 exits: [*Mat] / *Min x2 / *Sto x2) -9/Storage (discovered 2 exits: [*Mat] / Gar) -9/Garrison -9/Recycling -7/Factory History --------- Turn | Location | Event 10 | -11/Scrapyard | Discovered new exit (range 16) 70 | -11/Scrapyard | Entered Materials 314 | -10/Materials | Build established: Mutant 433 | -10/Materials | Discovered new exit (range 11) 523 | -10/Materials | Discovered new exit (range 16) 805 | -10/Materials | Discovered new exit (range 9) 818 | -10/Materials | Entered Mines 840 | -10/Mines | Met a Derelict bent on vengeance 885 | -10/Mines | Learned location of Storage (-9) 885 | -10/Mines | Discovered new exit (range 11) 1106 | -10/Mines | Core integrity fell below 50% 1137 | -10/Mines | Learned location of Zion (-7) 1262 | -10/Mines | Learned Materials security intel 1270 | -10/Mines | Discovered new exit (range 11) 1416 | -10/Mines | Met a Derelict shopkeep closing up shop 1500 | -10/Mines | Core integrity fell below 20% 1613 | -10/Mines | Entered Materials 1613 | -9/Materials | Evolved 2 slots: Utility x2 2458 | -9/Materials | Discovered new exit (range 15) 2519 | -9/Materials | Identified exit to Mines 2519 | -9/Materials | Identified exit to Storage 3230 | -9/Materials | Destroyed 11 combat bots 3279 | -9/Materials | Discovered new exit (range 16) 3384 | -9/Materials | Entered Storage 5237 | -9/Storage | Discovered new exit (range 8) 5609 | -9/Storage | Repaired Corrupted Hacking Suite 5627 | -9/Storage | Identified exit to Garrison 5690 | -9/Storage | Build established: Scavenger-Mutant 5881 | -9/Storage | Assisted by bots powering up and referring to "LRC-V3" 6075 | -9/Storage | Entered Garrison 6075 | -9/Garrison | Accompanied by 10 allies 6087 | -9/Garrison | Installed Relay Interface Framework 6184 | -9/Garrison | Build established: Commander-Mutant 6868 | -9/Garrison | Triggered checkpoint 6881 | -9/Garrison | Core integrity fell below 50% 6964 | -9/Garrison | Triggered checkpoint 7025 | -9/Garrison | Discovered new exit (range 8) 7122 | -9/Garrison | Triggered checkpoint 7157 | -9/Garrison | Garrison Relay disabled 7434 | -9/Garrison | Triggered checkpoint 7447 | -9/Garrison | Garrison Relay disabled 7662 | -9/Garrison | Triggered checkpoint 8222 | -9/Garrison | Entered Recycling 8222 | -9/Recycling | Accompanied by 14 allies 8272 | -9/Recycling | Spotter reported a threat 8286 | -9/Recycling | Spotter reported a threat 8312 | -9/Recycling | Spotter reported a threat 8357 | -9/Recycling | Spotter reported a threat 8357 | -9/Recycling | Spotter reported a threat 8363 | -9/Recycling | Spotter reported a threat 8363 | -9/Recycling | Spotter reported a threat 8365 | -9/Recycling | Spotter reported a threat 8365 | -9/Recycling | Spotter reported a threat 8416 | -9/Recycling | Spotter reported a threat 8428 | -9/Recycling | Spotter reported a threat 8432 | -9/Recycling | Spotter reported a threat 8437 | -9/Recycling | Spotter reported a threat 8476 | -9/Recycling | Spotter reported a threat 8476 | -9/Recycling | Spotter reported a threat 8476 | -9/Recycling | Spotter reported a threat 8477 | -9/Recycling | Spotter reported a threat 8524 | -9/Recycling | Discovered new exit (range 16) 8525 | -9/Recycling | Spotter reported a threat 8525 | -9/Recycling | Spotter reported a threat 8526 | -9/Recycling | Spotter reported a threat 8569 | -9/Recycling | Spotter reported a threat 8569 | -9/Recycling | Spotter reported a threat 8569 | -9/Recycling | Spotter reported a threat 8569 | -9/Recycling | Spotter reported a threat 8612 | -9/Recycling | Entered Factory 8612 | -7/Factory | Accompanied by 10 allies 8612 | -7/Factory | Evolved 4 slots: Utility x4 8890 | -7/Factory | Self-destructed Last Messages --------------- 08630_ ALERT: All DSF locations entering lockdown mode. 08638_ K-01 Serf collects debris. 08650_ K-01 Serf cleans the Fusion Modulator. 08661_ G-47 Trooper unfolds itself. 08665_ G-50 Soldier destroyed. 08666_ Slug penetrates G-47 Trooper. 08666_ G-47 Trooper destroyed. 08667_ Trooper 2a destroyed. 08667_ Mercenary 2b destroyed. 08669_ K-01 Serf collects debris. 08671_ Slug penetrates G-47 Trooper. 08673_ G-47 Trooper destroyed. 08673_ K-01 Serf destroyed. 08674_ Mercenary 2d destroyed. 08674_ G-47 Trooper destroyed. 08704_ R-06 Scavenger collects Aluminum Leg. 08795_ Shotgunner 2a destroyed. 08862_ ALERT: Rogue bot located, Programmers report to Factory Zone 4I. 08890_ Connecting with Fabricator... 08890_ Current location identified: Factory Map ----- +----------------------------------------------------+ | ?????????????????????????????????????????????????? | | ?????????????????????????????????????????????????? | | ?????????????????????????????????????????????????? | | ?????????????????????????????????????????????????? | | ??????????????????????????????????? ??? ????????? | | ??????????????????????????????????? ??" ????????? | | ??????????????????????????????? ??? ??" ????????? | | ??????????????????????????????? ??? ?? #???????? | | ??????????????????????????????? ??" "?" #???????? | | ??????????????????????????????" ??" """ #???????? | | ????????????????????????"""???" "?" """ #???????? | | ?????????????????????# ? ? ? #???????? | | ?????????????????????# """ """ """ """ #???????? | | ?????????????????????# """ """ """ """ #???????? | | ?????????????????????# """ """ """ """ #???????? | | ?????????????????????# ######### | | ?????????????????????# === """ """ | | ?????????????????????# === """ """ | | ????????????????###### == """ """ | | ???????????????? #[ | | ??????????????? # ! % | | ????????????" """" # ######+########### | | ????????????" """" # # ==%* ]#???? | | ??????????""" """" # """" =# !=%=%= #???? | | ??????????? """" # "F " #%!%%""" """ #???? | | ???????????? + @ # *=%""" """ #???? | | ????????????? """" # # %[""" """ #???? | | ????????????? """" + """ # #???? | | ????????????? """" ## """ #! """ """ #???? | | ?????????????? """" ## """ # """ """ #???? | | ?????????????? ## # """ """ #???? | | ???????################ """ # #???? | | ???????# =#### """ # ! #???? | | ???????# """" """ # """ # #???? | | ???????# """" """ #=% ##############???? | | ???????# """" """ + #????????????????? | | ???????# """" # = #????????????????? | | ???????# ! # #????????????????? | | ???????# * ! ##############????????????????? | | ???????#############?????????????????????????????? | | ?????????????????????????????????????????????????? | | | | | | | | | | | | | | | | | | | +----------------------------------------------------+ Best States ------------- Heat Dissipation 50 Energy Generation 18 Energy Capacity 275 Matter Stores 300 Matter Capacity 300 Sight Range 16 Terrain Scan Density 10 Armor Coverage 375 Resistance: KI 20 Evasion (%) 41 Recoil Reduction 2 Offensive Hacking 10 Item Schematics ----------------- None Robot Schematics ------------------ None Fabricated ------------ Nothing Alien Tech Used ----------------- None Achievements -------------- None Challenges ------------ None Game ------ Seed GreatSurveybotRay Manual? 0 Play Time 00:33:56 Cumulative 337.7 hours Start 2022.06.16 @ 14:53:19 End 2022.06.16 @ 21:41:06 Sessions 5 Manual Loads 0 Difficulty Rogue Special Mode None Game No. 599 Rogue 444 Adventurer 148 Explorer 7 Win Type - Total 11 Types 9/0/1/1/0/0/0/0/0 Lore% 74 Gallery% 87 Achievement% 67 Wizard Run 0 Options --------- ASCII 0 Keyboard 0 Movement Numpad Keybinds 0 Fullscreen 1 Font 18/SmallcapsGlow Map View 76x50 Tactical HUD 1 Map Filters NONE Filters NONE Steam 1 RUN: 18529e71-ef1a-4902-829b-a00acd3c2119